Cogmind - Beta 13 @@@ ROGUE MODE // 2024.04.08 @ 19:33:46 Player: chexo4 Result: Self-destructed Performance ------------- Evolutions (0) 0 Regions Visited (4) 800 Robots Destroyed (6) 30 Value Destroyed (108) 108 Prototype IDs (0) 0 Alien Tech Used (0) 0 Bonus (0) 0 TOTAL SCORE: 938 Bonus ------- None Cogmind --------- Core Integrity 155/250 Matter 287/300 Energy 100/100 System Corruption 0% Temperature Cool (0) Movement Rolling (100) Location -9/Mines Parts ------- > --- POWER (1) -------- (None) > --- PROPULSION (2) --- Compact Wheel > --- UTILITY (2) ------ Small Storage Unit > --- WEAPON (2) ------- Light Cannon > --- INVENTORY (8) ---- Light Nuclear Core Wheel Wheel Signal Interpreter Seismic Detector Light Assault Rifle Datajack Mining Laser Peak State ------------ > --- POWER ------------ Light Nuclear Core > --- PROPULSION ------- Wheel Compact Wheel > --- UTILITY ---------- Small Storage Unit Seismic Detector > --- WEAPON ----------- Light Assault Rifle Grenade Launcher > --- INVENTORY -------- Ion Engine Ion Engine Wheel Wheel Seismic Detector Small Laser Datajack Mining Laser [Rating: 9] Favorites ----------- Power Ion Engine Engine Ion Engine Power Core Light Nuclear Core Propulsion Compact Wheel Wheel Compact Wheel Utility Small Storage Unit Device Seismic Detector Storage Small Storage Unit Weapon Light Assault Rifle Energy Gun Small Laser Ballistic Gun Light Assault Rifle Ballistic Cannon Light Cannon Launcher Grenade Launcher Build | -11 -10 -10 -10 -9 ------- Run | Yrd Mat Min Exi Min Slots Evolved . | . . . . . Power . | . . . . . Propulsion . | . . . . . Utility . | . . . . . Weapon . | . . . . . Parts Attached 13 | 8 . 4 . 1 Power 3 | 1 . 2 . . Engine 2 | 1 . 1 . . Core 1 | . . 1 . . Reactor . | . . . . . Propulsion 2 | 2 . . . . Treads . | . . . . . Leg . | . . . . . Wheel 2 | 2 . . . . Hover . | . . . . . Flight . | . . . . . Utility 2 | 2 . . . . Device 1 | 1 . . . . Storage 1 | 1 . . . . Processor . | . . . . . Hackware . | . . . . . Protection . | . . . . . Artifact . | . . . . . Weapon 6 | 3 . 2 . 1 Energy Gun 2 | 2 . . . . Energy Cannon . | . . . . . Ballistic Gun 1 | 1 . . . . Ballistic Cannon 1 | . . 1 . . Launcher 2 | . . 1 . 1 Special Weapon . | . . . . . Impact Weapon . | . . . . . Slashing Weapon . | . . . . . Piercing Weapon . | . . . . . Special Melee Weapon . | . . . . . Unidentified Prototypes . | . . . . . Parts Lost 4 | . . . . 4 Power 1 | . . . . 1 Propulsion 1 | . . . . 1 Utility 1 | . . . . 1 Weapon 1 | . . . . 1 Highest Loss Streak 4 | . . . . 4 To Critical Strikes . | . . . . . Average Slot Usage (%) 98 | . 100 100 100 95 Engine 13 | . 14 13 14 13 Wheel 27 | . 28 28 28 27 Device 13 | . 14 14 14 12 Storage 14 | . 14 14 14 14 Energy Gun 2 | . 14 3 . . Ballistic Gun 13 | . 14 14 14 13 Ballistic Cannon 10 | . . 6 14 14 Launcher 1 | . . 3 . . Naked Turns . | . . . . . Heaviest Build 15 | 13 13 15 15 15 Greatest Support 26 | 26 26 26 26 26 Greatest Overweight (x) 4 | 4 . . . . Average Overweight (x) . | 2 . . . . Largest Inventory Capacity 8 | 8 8 8 8 8 Average Capacity 7 | 7 8 8 8 8 Most Carried 8 | 8 8 8 8 8 Average Carried 7 | 5 7 7 8 8 Final Capacity 8 | 8 8 8 8 8 Final Carried 8 | 6 8 8 8 8 Class Distribution -------------------- 100% | Mutant Dominant Class ---------------- Mutant | -10/Materials Mutant | -10/Mines Mutant | -10/Exiles Mutant | -9/Mines Resources | -11 -10 -10 -10 -9 ----------- Run | Yrd Mat Min Exi Min Matter Collected 354 | 252 . 92 . 10 Remotely . | . . . . . Salvage Created 250 | 149 . 80 . 21 Parts 10 | 5 . 5 . . Haulers Intercepted . | . . . . . Recyclers Shooed . | . . . . . Parts Field Recycled . | . . . . . Retrieved Matter . | . . . . . Parts Self-Destructed . | . . . . . Prevented . | . . . . . Kills | -11 -10 -10 -10 -9 ------- Run | Yrd Mat Min Exi Min Combat Hostiles Destroyed 7 | . . 2 . 5 Cannons 1 | . . . . 1 AOE 6 | . . 2 . 4 Classes Destroyed 4 | 2 . 1 . 1 Tunneler 3 | 3 . . . . Recycler 1 | 1 . . . . Grunt 2 | . . 2 . . Assembled 5 | . . . . 5 Best Kill Streak 5 | 1 . 2 . 5 Combat Bots Only 5 | . . 2 . 5 Max Kills in Single Turn 3 | 1 . 2 . 3 Gunslinging . | . . . . . Exploded 2 | . . 2 . 2 Melee . | . . . . . Uniques/NPCs Destroyed . | . . . . . Combat | -11 -10 -10 -10 -9 -------- Run | Yrd Mat Min Exi Min Hostile Shots Fired 18 | . . 3 . 15 Missed 4 | . . 2 . 2 Damage Taken 433 | 7 . 17 . 409 Core 95 | 7 . . . 88 Absorbed by Shields . | . . . . . Core Remaining (%) 97 | 97 . . . . Volleys Fired 16 | 12 . 2 . 2 Largest 2 | 2 . 2 . 2 Hottest 65 | 60 . 50 . 65 Shots Fired 31 | 24 . 3 . 4 Gun 26 | 24 . 2 . . Cannon 2 | . . . . 2 Launcher 3 | . . 1 . 2 Special . | . . . . . Kinetic 16 | 12 . 2 . 2 Thermal 9 | 9 . . . . Explosive 3 | . . 1 . 2 Electromagnetic 3 | 3 . . . . Robot Hit Streak 4 | 3 . 1 . 4 Robot Miss Streak 3 | 3 . 1 . . Penetration Max . | . . . . . Secondary Targets . | . . . . . Shots Hit Robots 16 | 12 . 1 . 3 Core Hits 17 | 4 . 2 . 11 Critical Kills . | . . . . . Critical Parts Destroyed . | . . . . . Critical Strikes . | . . . . . Melee Attacks . | . . . . . Impact . | . . . . . Slashing . | . . . . . Piercing . | . . . . . Sneak Attacks . | . . . . . Combat Hostiles . | . . . . . Follow-up Attacks . | . . . . . Damage Inflicted 583 | 167 . 64 . 352 Guns 123 | 123 . . . . Cannons 37 | . . . . 37 Explosions 423 | 44 . 64 . 315 Melee . | . . . . . Ramming . | . . . . . Kinetic 67 | 30 . . . 37 Thermal 110 | 110 . . . . Explosive 379 | . . 64 . 315 Electromagnetic 27 | 27 . . . . Impact . | . . . . . Slashing . | . . . . . Piercing . | . . . . . Highest Corruption . | . . . . . Average Corruption . | . . . . . Corruption Purged . | . . . . . Corruption Blocked . | . . . . . Overload Shots . | . . . . . Overflow Damage 12 | 12 . . . . Projectiles . | . . . . . Explosions 12 | 12 . . . . Melee . | . . . . . Knockbacks . | . . . . . Impact . | . . . . . Kinetic . | . . . . . Secondary . | . . . . . Self-Inflicted Damage 7 | 7 . . . . Shots 1 | 1 . . . . Rammed . | . . . . . Targets Rammed . | . . . . . Kicked . | . . . . . Crushed . | . . . . . Highest Temperature 40 | 40 . 10 . 1 Average Temperature 15 | 16 . 7 . 1 Received Heat Transfer 49 | . . 9 . 40 Siege Activations . | . . . . . Robots Corrupted . | . . . . . Combat Hostiles . | . . . . . Parts Fried . | . . . . . Impact Corruptions . | . . . . . Robots Melted . | . . . . . Combat Hostiles . | . . . . . Parts Melted 1 | 1 . . . . Heat Transferred 150 | 150 . . . . Parts Sabotaged . | . . . . . Parts Stolen . | . . . . . Parts Stripped . | . . . . . Power Chain Reactions 1 | 1 . . . . Alert | -11 -10 -10 -10 -9 ------- Run | Yrd Mat Min Exi Min Peak Influence 64 | 20 13 64 . 2 Initial 13 | . 13 4 . . Average 24 | 10 13 46 . . Maximum Alert Level . | . . . . . Low Security (%) 100 | 100 100 100 . 100 Level 1 . | . . . . . Level 2 . | . . . . . Level 3 . | . . . . . Level 4 . | . . . . . Level 5 . | . . . . . High Security . | . . . . . Max Security . | . . . . . Squads Dispatched . | . . . . . Investigation . | . . . . . Extermination . | . . . . . Reinforcement . | . . . . . Assault . | . . . . . Garrison . | . . . . . Intercept . | . . . . . Searches Triggered . | . . . . . Construction Impeded . | . . . . . Haulers Reinforced . | . . . . . Active Scanning Responses . | . . . . . Cargo Convoy Interrupts . | . . . . . Stealth | -11 -10 -10 -10 -9 --------- Run | Yrd Mat Min Exi Min Distress Signals . | . . . . . Communications Jammed . | . . . . . Distress Signals . | . . . . . Times Spotted 21 | . 1 2 . 18 Peak Tracking Total 9 | . 1 2 . 9 Tactical Retreats . | . . . . . Traps | -11 -10 -10 -10 -9 ------- Run | Yrd Mat Min Exi Min Traps Triggered . | . . . . . Indirectly . | . . . . . Trap Hack Attempts . | . . . . . Triggered . | . . . . . Disarmed . | . . . . . Reprogrammed . | . . . . . Reused . | . . . . . Traps Extracted . | . . . . . Installed . | . . . . . Triggered . | . . . . . Machines | -11 -10 -10 -10 -9 ---------- Run | Yrd Mat Min Exi Min Machines Disabled . | . . . . . Max in Single Turn . | . . . . . Machines Repaired . | . . . . . Machines Dismantled . | . . . . . Machines Sabotaged . | . . . . . Overloaded Fab Kills . | . . . . . Hacking | -11 -10 -10 -10 -9 --------- Run | Yrd Mat Min Exi Min Machines Accessed 1 | . . . 1 . Terminals . | . . . . . Fabricators . | . . . . . Repair Stations . | . . . . . Recycling Units . | . . . . . Scanalyzers . | . . . . . Garrison Access . | . . . . . Total Hacks 1 | . . . 1 . Successful 1 | . . . 1 . Failed . | . . . . . Catastrophic . | . . . . . Database Lockouts . | . . . . . Manual . | . . . . . Terminals . | . . . . . Fabricators . | . . . . . Repair Stations . | . . . . . Recycling Units . | . . . . . Scanalyzers . | . . . . . Garrison Access . | . . . . . Terminal Hacks 1 | . . . 1 . Record 1 | . . . 1 . Fabricator Hacks . | . . . . . Repair Station Hacks . | . . . . . Recycling Unit Hacks . | . . . . . Scanalyzer . | . . . . . Garrison Access Hacks . | . . . . . Unauthorized Hacks . | . . . . . Terminals . | . . . . . Fabricators . | . . . . . Repair Stations . | . . . . . Recycling Units . | . . . . . Scanalyzers . | . . . . . Garrison Access . | . . . . . Data Cores Recovered . | . . . . . Used . | . . . . . Hacking Detections . | . . . . . Full Trace Events . | . . . . . Feedback Events . | . . . . . Feedback Blocked . | . . . . . Robot Schematics Acquired . | . . . . . Robots Built . | . . . . . Authchips . | . . . . . Time . | . . . . . Total Robot Build Rating . | . . . . . Part Schematics Acquired . | . . . . . Parts Built . | . . . . . Authchips . | . . . . . Time . | . . . . . Total Part Build Rating . | . . . . . Parts Repaired . | . . . . . Time . | . . . . . Parts Recycled . | . . . . . Recycled Matter . | . . . . . Retrieved Matter . | . . . . . Retrieved Components . | . . . . . Parts Scanalyzed . | . . . . . Part Schematics Acquired . | . . . . . Parts Damaged . | . . . . . Bothacking | -11 -10 -10 -10 -9 ------------ Run | Yrd Mat Min Exi Min Used RIF Installer . | . . . . . Robots Hacked . | . . . . . Non-combat . | . . . . . Combat . | . . . . . Robot Hacks Applied . | . . . . . Relay Couplers Released . | . . . . . Fabnet Peak Effective % . | . . . . . Robots Rewired . | . . . . . Allies Hacked . | . . . . . Hacks Repelled . | . . . . . Allies | -11 -10 -10 -10 -9 -------- Run | Yrd Mat Min Exi Min Total Allies . | . . . . . Largest Group . | . . . . . Highest-Rated Group . | . . . . . Highest-Rated Ally . | . . . . . Total Orders . | . . . . . Ally Attacks . | . . . . . Total Damage . | . . . . . Kills . | . . . . . Allies Corrupted . | . . . . . Allies Melted . | . . . . . Intel | -11 -10 -10 -10 -9 ------- Run | Yrd Mat Min Exi Min Robot Analysis Total . | . . . . . Derelict Logs Recovered 2 | . . 1 . 1 Drone Launches . | . . . . . Drone Recoveries . | . . . . . Exploration | -11 -10 -10 -10 -9 ------------- Run | Yrd Mat Min Exi Min Turns Passed 869 | 170 43 288 220 148 Spaces Moved 736 | 65 44 290 245 92 Core 61 | 61 . . . . Treads . | . . . . . Legs . | . . . . . Wheels 675 | 4 44 290 245 92 Hover . | . . . . . Flight . | . . . . . Fastest Speed 50 | 50 90 90 90 90 Average Speed 97 | 179 90 90 90 90 Slowest Speed 250 | 250 90 90 90 90 Overloaded Moves . | . . . . . Propulsion Burnouts . | . . . . . Robots Hopped . | . . . . . Cave-ins Triggered . | . . . . . Exploration Rate (%) 34 | 4 20 58 62 26 Regions Visited 4 Branch Regions 3 Pre-discovered Areas 2 | . . 1 . 1 Known Exits Taken . | . . . . . Unknown Exits Taken 4 | 1 1 1 1 . Scrap Searched 2 | . . 1 . 1 Spaces Dug . | . . . . . Terrain Destroyed 29 | . . 10 . 19 Melee . | . . . . . Projectile . | . . . . . AOE 29 | . . 10 . 19 Terrain Rammed . | . . . . . Walls Destroyed . | . . . . . Machines Disabled . | . . . . . Actions | -11 -10 -10 -10 -9 --------- Run | Yrd Mat Min Exi Min Total 851 | 95 47 313 244 152 Wait 69 | . . 12 . 57 Move 732 | 64 43 289 244 92 Hop . | . . . . . Pick Up 17 | 11 3 3 . . Fast Attach 2 | 2 . . . . Attach 5 | 5 . . . . Detach . | . . . . . Swap 6 | 1 . 4 . 1 Drop 4 | . 1 3 . . Fire 16 | 12 . 2 . 2 Melee . | . . . . . Ram . | . . . . . Kick . | . . . . . Crush . | . . . . . Escape Stasis . | . . . . . Rewire . | . . . . . Trap . | . . . . . Miscellaneous . | . . . . . Route ------- -11/Scrapyard -10/Materials -10/Mines -10/Exiles -9/Mines History --------- Turn | Location | Event 4 | -11/Scrapyard | Discovered new exit (range 15) 171 | -11/Scrapyard | Entered Materials 181 | -10/Materials | Discovered new exit (range 15) 214 | -10/Materials | Entered Mines 341 | -10/Mines | Build established: Mutant 478 | -10/Mines | Learned location of Zion (-7) 495 | -10/Mines | Deemed a non-threat by the Exiles lab entrance 496 | -10/Mines | Discovered new exit (range 5) 502 | -10/Mines | Entered Exiles 502 | -10/Exiles | Found Exiles lab abandoned 711 | -10/Exiles | Discovered new exit (range 14) 722 | -10/Exiles | Entered Mines 741 | -9/Mines | Joined a pair of Derelicts in attacking an 0b10 outpost 828 | -9/Mines | Assembled infested the area 870 | -9/Mines | Self-destructed Last Messages --------------- as-28886 destroyed. K-01 Serf collects debris. as-82439 destroyed. K-01 Serf collects debris. D-53 Grenadier unfolds itself. Seismic Detector destroyed. K-01 Serf destroyed. 9P-YVT(g) destroyed. U-05 Engineer destroyed. Acquired 10 matter. as-98412 destroyed. as-88957 destroyed. as-01496 destroyed. Wheel destroyed. as-16485 destroyed. Ion Engine destroyed. as-09069 destroyed. as-96679 destroyed. Grenade Launcher destroyed. as-54853 destroyed. Map ----- +----------------------------------------------------+ | ?????????????????????????????????????????????????? | | ?????????????????????????????????????????????????? | | ?????????????????????????????????????????????????? | | ?????????????????????????????????????????????????? | | ?????????????????????????????????????????????????? | | ?????????????????????????????????????????????????? | | ?????????????????????????????????????????????????? | | ?????????????????????????????????????????????????? | | ???????????????????????? ???????????????????????? | | ???????????????????????? #??????????????????????? | | ??????????????????????? ##????????????????????? | | ???????????????????????? ##???????????????????? | | ???????????????????????? ???????????????????? | | ???????????????????????#% ???????????????????? | | ???????????????????????# ????????????????????? | | ???????????????????????# ????????????????????? | | ???????????????????????# ????????????????????? | | ??????????????????????? dt #????????????????????? | | ??????????????????????? d #????????????????????? | | ?????????????????????### ####?????????????????? | | ?????????????????????# ##????????????????? | | ???????????????##??### #????????????????? | | ???????????????# # ##???????????????? | | ?????????????### a g ##??????????????? | | ?????????? %a ######?????????? | | ?????????? [ @ #?????????? | | ???????????##### ### #????????? | | ???????????????# ###????? ???????? | | ???????????????###### #??????????????????? | | ????????????????????### # #######????????????? | | ??????????????????????###### ##"[!"##???????????? | | ???????????????????????????# #""!!""#??????????? | | ???????????????????????????# #%=![=%#??????????? | | ???????????????????????????# ##[ ###????????? | | ???????????????????????????# ###//## ##??????? | | ??????????????????????????## # #?????? | | ??????????????????????????# # #????? | | ??????????????????????????# ##??? | | ?????????????????????????## #### | | ????????????????????????## | | ???????????????????????## ## | | ???????????????????????# #!#####??? | | ???????????????????????# ##!#??????? | | ?????????????????# #####%#??????? | | ?????????????????# ## ##??##!#??????? | | ?????????????????# ### ## #?## ##??## #####??? | | ?????????????????????# ?# ???# ##???# ##?? | | ?????????????????????#??## ???# #????# ##? | | ?????????????????????????## ???# #????# #? | | ??????????????????????????##???# #????## #? | +----------------------------------------------------+ Best States ------------- Heat Dissipation 25 Energy Generation 14 Energy Capacity 250 Matter Stores 300 Matter Capacity 300 Sight Range 16 Terrain Scan Density 10 Evasion (%) 42 Item Schematics ----------------- None Robot Schematics ------------------ None Fabricated ------------ Nothing Alien Tech Used ----------------- None Achievements -------------- None Challenges ------------ None Game ------ Seed BehemothPotentialStripper Manual? 0 Play Time 00:09:07 Cumulative 16.3 hours Start 2024.04.08 @ 19:24:50 End 2024.04.08 @ 19:33:46 Sessions 1 Manual Loads 0 Difficulty Rogue Special Mode None Game No. 47 Rogue 47 Adventurer 0 Explorer 0 Win Type - Total 0 Types 0/0/0/0/0/0/0/0/0 Lore% 16 Gallery% 26 Achievement% 21 Wizard Run 0 Options --------- Layout 1 ASCII 0 Keyboard 0 Movement Arrows Keybinds 0 Fullscreen 2 Font 24/Smallcaps Map View 50x35 Zoom Use 0% Tactical HUD 0 Map Filters NONE Filters NONE Steam 1 RUN: b571c82f-9aab-4641-be5f-72e54d8ad2b1